bitfinex/quotes_BTCUSD_20241002
["timestamp","ask_amount","ask_price","bid_price","bid_amount"]
[1727835620389,0.02541844,61664.0,61663.0,0.76611006]
[1727835620608,0.24499341,61675.0,61673.0,0.129716]
[1727835620841,0.24499341,61675.0,61673.0,0.29909756]
[1727835621109,0.00973245,61674.0,61673.0,0.29909756]
[1727835621337,0.000819,61674.0,61673.0,0.30234005]
[1727835621568,0.000819,61674.0,61673.0,0.37914005]
[1727835621782,0.000819,61674.0,61673.0,0.38089756]
[1727835623117,0.000819,61674.0,61673.0,0.54559201]
[1727835623593,0.000819,61674.0,61673.0,0.55059201]
[1727835625138,0.000819,61674.0,61673.0,0.55570783]
[1727835626309,0.0933,61689.0,61688.0,0.129684]
[1727835626772,0.10232066,61689.0,61688.0,0.129684]
[1727835627295,0.0933,61689.0,61688.0,0.129684]
[1727835627806,0.0933,61689.0,61688.0,0.134684]
[1727835627807,0.10254488,61689.0,61688.0,0.134684]
[1727835628034,0.10254488,61689.0,61688.0,0.129684]
[1727835628272,0.0933,61689.0,61688.0,0.141684]
[1727835628779,0.10254488,61689.0,61688.0,0.141684]
[1727835629472,0.12795799,61689.0,61688.0,0.141684]
[1727835630901,0.11871311,61689.0,61688.0,0.141684]
[1727835631191,0.12798116,61689.0,61688.0,0.141684]
[1727835631420,0.11871311,61689.0,61688.0,0.141684]
[1727835631927,0.10492031,61689.0,61688.0,0.141684]
[1727835632134,0.10783001,61689.0,61688.0,0.141684]
[1727835633776,0.10783001,61689.0,61688.0,0.25277436]
[1727835634000,0.38182424,61689.0,61688.0,0.012]
[1727835634637,0.38182424,61689.0,61688.0,0.006]
[1727835634638,0.36929963,61689.0,61688.0,0.006]
[1727835635051,0.37011863,61689.0,61688.0,0.002]
[1727835635265,0.39553266,61689.0,61688.0,0.002]
[1727835636091,0.39553266,61689.0,61680.0,0.129701]
[1727835636092,0.129694,61684.0,61680.0,0.129701]
[1727835636332,0.259383,61685.0,61679.0,0.24417441]
[1727835636516,0.14419727,61683.0,61679.0,0.37387741]
[1727835636721,0.129695,61683.0,61679.0,0.37387741]
[1727835636927,0.129695,61683.0,61679.0,0.129703]
[1727835637137,0.129695,61683.0,61678.0,0.129705]
[1727835637138,0.1297,61681.0,61678.0,0.129705]
[1727835637408,0.206399,61681.0,61680.0,0.001]
[1727835637882,0.206399,61681.0,61675.0,0.001638]
[1727835637883,0.129705,61679.0,61675.0,0.001638]
[1727835638105,0.129705,61679.0,61675.0,0.131349]
[1727835638351,0.0145015,61678.0,61675.0,0.131349]
[1727835638565,0.0145015,61678.0,61675.0,0.001638]
[1727835638793,0.129709,61677.0,61675.0,0.001638]
[1727835639241,0.1442115,61676.0,61675.0,0.001638]
[1727835639461,0.0145015,61676.0,61675.0,0.001638]
[1727835639902,0.12971,61676.0,61675.0,0.001638]
[1727835640157,0.1442115,61676.0,61675.0,0.001638]
[1727835640352,0.1442115,61676.0,61675.0,0.005638]
[1727835640570,0.33864642,61676.0,61675.0,0.005638]
[1727835640790,0.41534642,61676.0,61675.0,0.001638]
[1727835640999,0.41534642,61676.0,61675.0,0.007638]
[1727835641211,0.41534642,61676.0,61675.0,0.006638]
[1727835641656,0.41534642,61676.0,61675.0,0.010638]
[1727835641890,0.41534642,61676.0,61675.0,0.001638]
[1727835641891,0.38993216,61676.0,61675.0,0.001638]
[1727835642104,0.1142015,61676.0,61675.0,0.30069375]
[1727835642315,0.0145015,61676.0,61675.0,0.30069375]
[1727835642773,0.01434259,61676.0,61675.0,0.17098175]
[1727835642990,0.01434259,61676.0,61675.0,0.29905575]
[1727835643208,0.37386841,61684.0,61680.0,0.1297]
[1727835643622,0.01434259,61683.0,61680.0,0.1297]
[1727835644723,0.01634259,61683.0,61680.0,0.1307]
[1727835644937,0.14603759,61683.0,61680.0,0.1317]
[1727835645402,0.129698,61682.0,61680.0,0.002]
[1727835645601,0.01434259,61683.0,61682.0,0.129697]
[1727835645809,0.130502,61689.0,61685.0,0.12969]
[1727835646222,0.01434259,61688.0,61685.0,0.12969]
[1727835646682,0.01434259,61688.0,61683.0,0.29903675]
[1727835646891,0.129687,61687.0,61684.0,0.129692]
[1727835647516,0.01434259,61686.0,61683.0,0.29903875]
[1727835647724,0.14403159,61686.0,61683.0,0.16934375]
[1727835647939,0.129691,61685.0,61683.0,0.16934375]
[1727835648148,0.01434259,61686.0,61682.0,0.129697]
[1727835648356,0.01448892,61684.0,61682.0,0.129697]
[1727835648561,0.132688,61687.0,61683.0,0.129695]
[1727835649179,0.001,61685.0,61683.0,0.129695]
[1727835649409,0.129689,61686.0,61683.0,0.129695]
[1727835649624,0.129689,61686.0,61682.0,0.129696]
[1727835650029,0.130689,61686.0,61682.0,0.129696]
[1727835650455,0.129689,61686.0,61682.0,0.129696]
[1727835650660,0.129689,61686.0,61683.0,0.130694]
[1727835651353,0.15509835,61687.0,61683.0,0.129694]
[1727835651904,0.129687,61687.0,61683.0,0.129694]
[1727835652312,0.129687,61687.0,61683.0,0.29903775]
[1727835652952,0.260188,61689.0,61679.0,0.259405]
[1727835652953,0.000819,61689.0,61679.0,0.16934375]
[1727835653228,0.0965,61685.0,61678.0,0.129705]
[1727835653439,0.0965,61685.0,61678.0,0.259411]
[1727835653650,0.129693,61684.0,61679.0,0.16934375]
[1727835653862,0.129693,61684.0,61680.0,0.129701]
[1727835654276,0.0965,61685.0,61682.0,0.129696]
[1727835654499,0.0965,61685.0,61680.0,0.259401]
[1727835654500,0.129695,61683.0,61680.0,0.129701]
[1727835654975,0.129695,61683.0,61680.0,0.130701]
[1727835655187,0.15510685,61683.0,61680.0,0.130701]
[1727835655442,0.02541185,61683.0,61680.0,0.129701]
[1727835655859,0.15510785,61683.0,61679.0,0.30104575]
[1727835656284,0.129696,61683.0,61679.0,0.29904575]
[1727835656498,0.25939,61683.0,61680.0,0.003]
[1727835656712,0.129695,61683.0,61680.0,0.003]
[1727835657148,0.129695,61683.0,61680.0,0.002]
[1727835658030,0.01449448,61682.0,61680.0,0.002]
[1727835658891,0.01449448,61682.0,61680.0,0.005]
[1727835659125,0.14419248,61682.0,61680.0,0.005]
[1727835659347,0.16960456,61682.0,61680.0,0.001946]
[1727835659872,0.129699,61681.0,61680.0,0.005946]
[1727835660563,0.129702,61680.0,61676.0,0.37388441]
[1727835661012,0.129702,61680.0,61676.0,0.12971]
[1727835661229,0.01449448,61679.0,61676.0,0.12971]
[1727835661658,0.01449448,61679.0,61677.0,0.129707]
[1727835662592,0.01449448,61679.0,61678.0,0.129705]
[1727835663070,0.129699,61681.0,61678.0,0.129705]
[1727835663306,0.01447599,61679.0,61678.0,0.129705]
[1727835663561,0.129699,61681.0,61678.0,0.129705]
[1727835663778,0.12971,61676.0,61675.0,0.001638]
[1727835664249,0.14418599,61676.0,61675.0,0.001638]
[1727835665254,0.10921075,61676.0,61675.0,0.001638]
[1727835665490,0.23892075,61676.0,61675.0,0.001638]
[1727835665786,0.31000665,61676.0,61675.0,0.001638]
[1727835666511,0.39080665,61676.0,61675.0,0.001638]
[1727835666763,0.39380665,61676.0,61675.0,0.001638]
[1727835667010,0.39380665,61676.0,61675.0,0.002638]
[1727835667505,0.39480665,61676.0,61675.0,0.002638]
[1727835667770,0.39380665,61676.0,61675.0,0.001638]
[1727835668010,1.49349288,61676.0,61675.0,0.002638]
[1727835668223,1.44185251,61676.0,61675.0,0.002638]
[1727835668476,1.54213325,61676.0,61675.0,0.003638]
[1727835668725,1.56755279,61676.0,61675.0,0.003638]
[1727835668954,1.56455279,61676.0,61675.0,0.002638]
[1727835669411,1.54316564,61676.0,61675.0,0.003638]
[1727835669697,1.59187298,61676.0,61675.0,0.003638]
[1727835670187,1.47027205,61676.0,61675.0,0.003638]
[1727835671359,1.56739696,61676.0,61675.0,0.003638]
[1727835672024,1.54197742,61676.0,61675.0,0.003638]
[1727835672287,1.2888274,61676.0,61675.0,0.003638]
[1727835672472,0.49480665,61676.0,61675.0,0.003638]
[1727835672739,0.39480665,61676.0,61675.0,0.003638]
[1727835673650,0.31400665,61676.0,61675.0,0.003638]
[1727835674519,0.21750665,61676.0,61675.0,0.17298175]
[1727835674739,0.08679665,61676.0,61675.0,0.17198175]
[1727835675003,0.21350665,61676.0,61675.0,0.25388175]
[1727835675220,0.24292209,61676.0,61675.0,0.25588175]
[1727835675884,0.04089143,61676.0,61675.0,0.25488175]
[1727835676108,0.17060143,61676.0,61675.0,0.25488175]
[1727835676343,0.01447599,61676.0,61675.0,0.38359375]
[1727835676734,0.01755325,61676.0,61675.0,0.38459375]
[1727835677169,0.01755325,61676.0,61675.0,0.38359375]
[1727835677380,0.01855325,61676.0,61675.0,0.38359375]
[1727835677586,0.01655325,61676.0,61675.0,0.38359375]
[1727835678003,0.129705,61679.0,61675.0,0.38659375]
[1727835678214,0.01655325,61676.0,61675.0,0.38659375]
[1727835678459,0.129705,61678.0,61675.0,0.38659375]
[1727835678767,0.000819,61680.0,61675.0,0.25688175]
[1727835678967,0.000819,61680.0,61679.0,0.29904675]
[1727835680080,0.001819,61680.0,61679.0,0.29904675]
[1727835680296,0.000819,61680.0,61679.0,0.29904675]
[1727835680523,0.02623077,61680.0,61675.0,0.001638]
[1727835680745,0.02723077,61680.0,61675.0,0.001638]
[1727835680977,0.129704,61679.0,61675.0,0.131349]
[1727835681178,0.02623077,61680.0,61675.0,0.131349]
[1727835681179,0.129709,61677.0,61675.0,0.001638]
[1727835681397,0.12971,61676.0,61675.0,0.001638]
[1727835682458,0.129708,61677.0,61675.0,0.005638]
[1727835682918,0.129708,61677.0,61675.0,0.001638]
[1727835683583,0.130708,61677.0,61675.0,0.001638]
[1727835683807,0.129708,61677.0,61675.0,0.001638]
[1727835684240,0.130708,61677.0,61675.0,0.001638]
[1727835684456,0.129708,61677.0,61675.0,0.001638]
[1727835684895,0.133708,61677.0,61675.0,0.001638]
[1727835685163,0.15912225,61677.0,61675.0,0.001638]
[1727835685584,0.15612225,61677.0,61675.0,0.001638]
[1727835685828,0.15712225,61677.0,61675.0,0.001638]
[1727835686057,0.02741425,61677.0,61675.0,0.001638]
[1727835686280,0.02741425,61677.0,61675.0,0.17098175]
[1727835686281,0.002,61677.0,61675.0,0.17098175]
[1727835686498,0.001,61677.0,61675.0,0.17098175]
[1727835686924,0.002,61677.0,61675.0,0.17098175]
[1727835687142,0.001,61677.0,61675.0,0.17098175]
[1727835687360,0.01667379,61676.0,61675.0,0.17098175]
[1727835688669,0.129708,61677.0,61675.0,0.17198175]
[1727835688885,0.01667379,61676.0,61675.0,0.17198175]
[1727835689298,0.02541386,61677.0,61675.0,0.001638]
[1727835689505,0.01667379,61676.0,61675.0,0.001638]
[1727835689715,0.01867379,61676.0,61675.0,0.001638]
[1727835689940,0.14838379,61676.0,61675.0,0.001638]
[1727835690194,0.14938379,61676.0,61675.0,0.001638]
[1727835690616,0.15038379,61676.0,61675.0,0.001638]
[1727835690825,0.14838379,61676.0,61675.0,0.001638]
[1727835691048,0.14938379,61676.0,61675.0,0.001638]
[1727835691263,0.15038379,61676.0,61675.0,0.001638]
[1727835691527,0.14738379,61676.0,61675.0,0.001638]
[1727835691736,0.14638379,61676.0,61675.0,0.001638]
[1727835691944,0.14838379,61676.0,61675.0,0.001638]
[1727835692371,0.14638379,61676.0,61675.0,0.001638]
[1727835692631,0.21870445,61676.0,61675.0,0.001638]
[1727835692871,0.21970445,61676.0,61675.0,0.001638]
[1727835693497,0.22070445,61676.0,61675.0,0.002638]
[1727835693709,0.21970445,61676.0,61675.0,0.001638]
[1727835693924,0.21670445,61676.0,61675.0,0.001638]
[1727835694154,0.22070445,61676.0,61675.0,0.003638]
[1727835694587,0.21770445,61676.0,61675.0,0.002638]
[1727835695009,0.22070445,61676.0,61675.0,0.003638]
[1727835695226,0.24612252,61676.0,61675.0,0.003638]
[1727835695454,0.22070445,61676.0,61675.0,0.003638]
[1727835696580,0.39360445,61676.0,61675.0,0.003638]
[1727835698341,0.41902213,61676.0,61675.0,0.003638]
[1727835703703,0.39360445,61676.0,61675.0,0.003638]
[1727835704829,0.51778842,61676.0,61675.0,0.003638]
[1727835705043,0.41660445,61676.0,61675.0,0.003638]
[1727835705253,0.44202254,61676.0,61675.0,0.003638]
[1727835706169,0.44402254,61676.0,61675.0,0.003638]
[1727835707045,0.41860445,61676.0,61675.0,0.003638]
[1727835707250,0.41660445,61676.0,61675.0,0.003638]
[1727835709596,0.31590445,61676.0,61675.0,0.003638]
[1727835710063,0.3413222,61676.0,61675.0,0.003638]
[1727835711924,0.31590445,61676.0,61675.0,0.003638]
[1727835719282,0.34132197,61676.0,61675.0,0.003638]
[1727835719496,0.24612197,61676.0,61675.0,0.003638]
[1727835721971,0.22070445,61676.0,61675.0,0.003638]
[1727835722850,0.21870445,61676.0,61675.0,0.002638]
[1727835723074,0.21570445,61676.0,61675.0,0.001638]
[1727835723298,0.21670445,61676.0,61675.0,0.001638]
[1727835724263,0.31430445,61676.0,61675.0,0.001638]
[1727835724471,0.31830445,61676.0,61675.0,0.001638]
[1727835724944,0.36188757,61676.0,61675.0,0.001638]
[1727835725161,0.50464218,61676.0,61675.0,0.002638]
[1727835725383,0.39030513,61676.0,61675.0,0.002638]
[1727835725603,0.38730513,61676.0,61675.0,0.001638]
[1727835726031,0.39130513,61676.0,61675.0,0.003638]
[1727835726257,0.31730445,61676.0,61675.0,0.003638]
[1727835726532,0.44130445,61676.0,61675.0,0.002638]
[1727835726749,0.51517914,61676.0,61675.0,0.003638]
[1727835726964,0.66514551,61676.0,61675.0,0.003638]
[1727835727191,0.59227082,61676.0,61675.0,0.003638]
[1727835727418,0.59227082,61676.0,61675.0,0.002638]
[1727835727419,0.68643707,61676.0,61675.0,0.002638]
[1727835727628,0.69843707,61676.0,61675.0,0.003638]
[1727835728069,0.68543707,61676.0,61675.0,0.001638]
[1727835728290,0.70943707,61676.0,61675.0,0.002638]
[1727835728504,0.69743707,61676.0,61675.0,0.002638]
[1727835728973,0.69943707,61676.0,61675.0,0.001638]
[1727835729192,0.71143707,61676.0,61675.0,0.002638]
[1727835731031,0.73685724,61676.0,61675.0,0.002638]
[1727835731275,0.71143707,61676.0,61675.0,0.002638]
[1727835731734,0.71152987,61676.0,61675.0,0.002638]
[1727835731956,0.131741,61661.0,61656.0,0.001638]
[1727835732169,0.20103382,61661.0,61656.0,0.001638]
[1727835732437,0.21735727,61661.0,61656.0,0.001638]
[1727835732643,0.12975,61657.0,61656.0,0.001638]
[1727835732866,0.20156888,61657.0,61656.0,0.001638]
[1727835733309,0.21789233,61657.0,61656.0,0.001638]
[1727835733968,0.24331678,61657.0,61656.0,0.001638]
[1727835734447,0.25431678,61657.0,61656.0,0.001638]
[1727835734639,0.25431678,61657.0,61656.0,0.077138]
[1727835734918,0.0527479,61657.0,61656.0,0.077138]
[1727835735136,0.01632345,61657.0,61656.0,0.077138]
[1727835735359,0.02732345,61657.0,61656.0,0.077138]
[1727835735573,0.023,61657.0,61656.0,0.077138]
[1727835735784,0.02715183,61657.0,61656.0,0.077138]
[1727835736226,0.16490183,61657.0,61656.0,0.077138]
[1727835736665,0.15390183,61657.0,61656.0,0.077138]
[1727835736908,0.03015183,61657.0,61656.0,0.077138]
[1727835738267,0.03015183,61657.0,61656.0,0.20689]
[1727835738516,0.03015183,61657.0,61656.0,0.077138]
[1727835739392,0.05557407,61657.0,61656.0,0.077138]
[1727835740267,0.05557407,61657.0,61656.0,0.20689]
[1727835741633,0.03942224,61657.0,61656.0,0.20689]
[1727835741843,0.05557407,61657.0,61656.0,0.20689]
[1727835744274,0.05557407,61657.0,61656.0,0.30009]
[1727835744482,0.03942224,61657.0,61656.0,0.30009]
[1727835745134,0.014,61657.0,61656.0,0.30009]
[1727835745556,0.006,61657.0,61656.0,0.30009]
[1727835745770,0.007,61657.0,61656.0,0.30009]
[1727835745983,0.001,61657.0,61656.0,0.30009]
[1727835746194,0.002,61657.0,61656.0,0.30009]
[1727835749558,0.02742358,61657.0,61656.0,0.30009]
[1727835750460,0.02742358,61657.0,61656.0,0.20689]
[1727835750663,0.04362792,61657.0,61656.0,0.20689]
[1727835751082,0.04262792,61657.0,61656.0,0.20689]
[1727835751953,0.01720434,61657.0,61656.0,0.20689]
[1727835752164,0.01620434,61657.0,61656.0,0.20689]
[1727835752370,0.01720434,61657.0,61656.0,0.20689]
[1727835752584,0.001,61657.0,61656.0,0.20689]
[1727835752802,0.01620434,61657.0,61656.0,0.20689]
[1727835753049,0.129741,61661.0,61657.0,0.129748]
[1727835753744,0.129741,61661.0,61658.0,0.129746]
[1727835754612,0.002,61661.0,61658.0,0.129746]
[1727835754822,0.129739,61662.0,61658.0,0.129746]
[1727835755032,0.02542393,61661.0,61658.0,0.129746]
[1727835755256,0.02742393,61661.0,61658.0,0.129746]
[1727835756143,0.02742393,61661.0,61659.0,0.129744]
[1727835756362,0.07135858,61660.0,61656.0,0.077138]
[1727835756581,0.12975,61657.0,61656.0,0.077138]
[1727835756847,0.12975,61657.0,61656.0,0.001638]
[1727835757279,0.129749,61658.0,61656.0,0.001638]
[1727835757492,0.20150212,61658.0,61656.0,0.001638]
[1727835757928,0.005,61657.0,61656.0,0.13139]
[1727835758177,0.07175312,61658.0,61656.0,0.13139]
[1727835758391,0.07475312,61658.0,61656.0,0.13139]
[1727835758619,0.003,61658.0,61657.0,0.30925]
[1727835759930,0.02842324,61658.0,61657.0,0.30925]
[1727835760598,0.02542324,61658.0,61657.0,0.30925]
[1727835760847,0.02742324,61658.0,61657.0,0.30925]
[1727835761053,0.12975,61657.0,61656.0,0.001638]
[1727835761957,0.14593416,61657.0,61656.0,0.001638]
[1727835762383,0.21775304,61657.0,61656.0,0.001638]
[1727835762597,0.21875304,61657.0,61656.0,0.001638]
[1727835763868,0.21775304,61657.0,61656.0,0.001638]
[1727835764079,0.22375304,61657.0,61656.0,0.001638]
[1727835764512,0.21775304,61657.0,61656.0,0.001638]
[1727835764732,0.22475304,61657.0,61656.0,0.001638]
[1727835765235,0.25417989,61657.0,61656.0,0.001638]
[1727835765730,0.25017989,61657.0,61656.0,0.001638]
[1727835765963,0.25517989,61657.0,61656.0,0.001638]
[1727835766238,0.36476663,61657.0,61656.0,0.001638]
[1727835766487,0.35711815,61657.0,61656.0,0.001638]
[1727835766721,0.30845304,61657.0,61656.0,0.001638]
[1727835766973,0.35711815,61657.0,61656.0,0.001638]
[1727835767180,0.45281815,61657.0,61656.0,0.001638]
[1727835767612,0.59814533,61657.0,61656.0,0.001638]
[1727835767850,0.60914533,61657.0,61656.0,0.001638]
[1727835768300,0.65348022,61657.0,61656.0,0.001638]
[1727835768513,0.66248022,61657.0,61656.0,0.001638]
[1727835768728,0.73547788,61657.0,61656.0,0.001638]
[1727835769161,0.76290619,61657.0,61656.0,0.001638]
[1727835769404,2.34066519,61657.0,61656.0,0.001638]
[1727835769618,2.36498911,61657.0,61656.0,0.001638]
[1727835769840,2.26766753,61657.0,61656.0,0.001638]
[1727835770563,2.35397452,61657.0,61656.0,0.001638]
[1727835770784,2.25666753,61657.0,61656.0,0.001638]
[1727835770998,2.27066753,61657.0,61656.0,0.001638]
[1727835771225,2.26166753,61657.0,61656.0,0.001638]
[1727835771857,2.25023922,61657.0,61656.0,0.001638]
[1727835772303,2.22223922,61657.0,61656.0,0.001638]
[1727835772564,2.23623922,61657.0,61656.0,0.001638]
[1727835774154,2.25023922,61657.0,61656.0,0.001638]
[1727835774369,2.22223922,61657.0,61656.0,0.001638]
[1727835774548,2.36803204,61657.0,61656.0,0.001638]
[1727835774815,2.24370486,61657.0,61656.0,0.001638]
[1727835775070,1.46837652,61657.0,61656.0,0.001638]
[1727835775312,1.33289104,61657.0,61656.0,0.001638]
[1727835775532,1.44406632,61657.0,61656.0,0.001638]
[1727835777712,1.33318432,61657.0,61656.0,0.001638]
[1727835777919,1.49806614,61657.0,61656.0,0.001638]
[1727835778336,1.52349774,61657.0,61656.0,0.001638]
[1727835778544,1.54046366,61657.0,61656.0,0.001638]
[1727835778720,1.54043891,61657.0,61656.0,0.001638]
[1727835778966,1.44328838,61657.0,61656.0,0.001638]
[1727835779192,1.54043901,61657.0,61656.0,0.001638]
[1727835779847,1.44328838,61657.0,61656.0,0.001638]
[1727835780054,1.5647263,61657.0,61656.0,0.001638]
[1727835780689,1.44328838,61657.0,61656.0,0.001638]
[1727835780973,1.5647263,61657.0,61656.0,0.001638]
[1727835781185,1.44328838,61657.0,61656.0,0.001638]
[1727835781412,1.5647263,61657.0,61656.0,0.001638]
[1727835781875,1.51498187,61657.0,61656.0,0.001638]
[1727835782304,1.41785678,61657.0,61656.0,0.001638]
[1727835782513,1.51498052,61657.0,61656.0,0.001638]
[1727835783215,1.51496979,61657.0,61656.0,0.001638]
[1727835783690,1.41785678,61657.0,61656.0,0.001638]
[1727835784159,0.72500078,61657.0,61656.0,0.001638]
[1727835784335,3.39541778,61657.0,61656.0,0.001638]
[1727835784548,3.29149578,61657.0,61656.0,0.001638]
[1727835784966,2.76370678,61657.0,61656.0,0.001638]
[1727835785174,2.78913863,61657.0,61656.0,0.001638]
[1727835785374,2.88623428,61657.0,61656.0,0.001638]
[1727835786213,2.86080243,61657.0,61656.0,0.001638]
[1727835787107,2.76370678,61657.0,61656.0,0.001638]
[1727835787577,2.8851447,61657.0,61656.0,0.001638]
[1727835787578,2.76370678,61657.0,61656.0,0.001638]
[1727835788490,1.82029578,61657.0,61656.0,0.001638]
[1727835788709,1.75249873,61657.0,61656.0,0.001638]
[1727835788933,1.01458196,61657.0,61656.0,0.001638]
[1727835789143,0.96138496,61657.0,61656.0,0.001638]
[1727835789349,1.05962724,61657.0,61656.0,0.001638]
[1727835789770,0.43868975,61657.0,61656.0,0.001638]
[1727835789986,0.42468975,61657.0,61656.0,0.001638]
[1727835790201,1.07455275,61657.0,61656.0,0.001638]
[1727835790629,1.19089521,61657.0,61656.0,0.001638]
[1727835790853,1.20489521,61657.0,61656.0,0.001638]
[1727835791051,1.22789521,61657.0,61656.0,0.001638]
[1727835791503,1.14174721,61657.0,61656.0,0.001638]
[1727835791714,0.82069739,61657.0,61656.0,0.001638]
[1727835791924,0.79526596,61657.0,61656.0,0.001638]
[1727835794143,0.86807681,61657.0,61656.0,0.001638]
[1727835795311,0.89350785,61657.0,61656.0,0.001638]
[1727835796190,1.05838967,61657.0,61656.0,0.001638]
[1727835796404,1.03295863,61657.0,61656.0,0.001638]
[1727835797055,0.46052981,61657.0,61656.0,0.001638]
[1727835797267,0.38771896,61657.0,61656.0,0.001638]
[1727835797500,0.4173197,61657.0,61656.0,0.001638]
[1727835797732,0.34575304,61657.0,61656.0,0.001638]
[1727835799279,0.3571832,61657.0,61656.0,0.001638]
[1727835799496,0.3701832,61657.0,61656.0,0.001638]
[1727835799701,0.3561832,61657.0,61656.0,0.001638]
[1727835800142,0.3671832,61657.0,61656.0,0.001638]
[1727835801227,0.3691832,61657.0,61656.0,0.001638]
[1727835801439,0.41776996,61657.0,61656.0,0.001638]
[1727835801878,0.3923398,61657.0,61656.0,0.001638]
[1727835802744,0.34375304,61657.0,61656.0,0.001638]
[1727835803021,0.34175304,61657.0,61656.0,0.001638]
[1727835803232,0.39035779,61657.0,61656.0,0.001638]
[1727835804487,0.34175304,61657.0,61656.0,0.001638]
[1727835805378,0.36718305,61657.0,61656.0,0.001638]
[1727835805621,0.41463319,61657.0,61656.0,0.001638]
[1727835806708,0.43892657,61657.0,61656.0,0.001638]
[1727835808459,0.46435662,61657.0,61656.0,0.001638]
[1727835808666,0.48865001,61657.0,61656.0,0.001638]
[1727835809081,0.46453402,61657.0,61656.0,0.001638]
[1727835809511,0.60118041,61657.0,61656.0,0.001638]
[1727835809728,0.6252964,61657.0,61656.0,0.001638]
[1727835811641,0.50382948,61657.0,61656.0,0.001638]
[1727835811845,0.48039943,61657.0,61656.0,0.001638]
[1727835813385,0.34175304,61657.0,61656.0,0.001638]
[1727835813598,0.34175304,61657.0,61656.0,0.081138]
[1727835813806,0.43914445,61657.0,61656.0,0.081138]
[1727835815324,0.46457354,61657.0,61656.0,0.081138]
[1727835815534,0.36718213,61657.0,61656.0,0.081138]
[1727835815999,0.36718213,61657.0,61656.0,0.001638]
[1727835816447,0.34175304,61657.0,61656.0,0.001638]
[1727835817133,0.43913583,61657.0,61656.0,0.001638]
[1727835817382,0.21200304,61657.0,61656.0,0.001638]
[1727835817636,0.21200304,61657.0,61656.0,0.081138]
[1727835818733,0.11200304,61657.0,61656.0,0.081138]
[1727835818944,0.04018416,61657.0,61656.0,0.30859]
[1727835819377,0.04942724,61657.0,61656.0,0.30859]
[1727835819810,0.02542724,61657.0,61656.0,0.30859]
[1727835820015,0.05042724,61657.0,61656.0,0.30859]
[1727835820422,0.02542724,61657.0,61656.0,0.30859]
[1727835820627,0.02942724,61657.0,61656.0,0.30859]
[1727835820832,0.02742724,61657.0,61656.0,0.30859]
[1727835821860,0.002,61657.0,61656.0,0.30859]
[1727835822475,0.229735,61664.0,61658.0,0.129746]
[1727835822677,0.229735,61664.0,61657.0,0.129749]
[1727835822678,0.20096506,61663.0,61657.0,0.129749]
[1727835822888,0.12974,61662.0,61657.0,0.129749]
[1727835823095,0.07142432,61661.0,61657.0,0.129749]
[1727835823503,0.08451024,61661.0,61657.0,0.129749]
[1727835824530,0.08851024,61661.0,61657.0,0.129749]
[1727835824912,0.30044271,61661.0,61656.0,0.30859]
[1727835825153,0.21825324,61661.0,61656.0,0.30859]
[1727835825358,0.24367886,61661.0,61656.0,0.30859]
[1727835825562,0.24367886,61661.0,61657.0,0.129749]
[1727835825767,0.24367886,61661.0,61656.0,0.178838]
[1727835825768,0.129744,61660.0,61656.0,0.178838]
[1727835825992,0.129744,61660.0,61656.0,0.308589]
[1727835825993,0.0716216,61659.0,61656.0,0.308589]
[1727835826216,0.08470752,61659.0,61656.0,0.308589]
[1727835826431,0.08470752,61659.0,61657.0,0.129749]
[1727835827826,0.08670752,61659.0,61656.0,0.308589]
[1727835828054,0.08670752,61659.0,61657.0,0.129748]
[1727835828267,0.08670752,61659.0,61656.0,0.178838]
[1727835828268,0.12975,61657.0,61656.0,0.081138]
[1727835828494,0.20156888,61657.0,61656.0,0.081138]
[1727835828920,0.2146548,61657.0,61656.0,0.081138]
[1727835829634,0.2156548,61657.0,61656.0,0.081138]
[1727835835264,0.24108102,61657.0,61656.0,0.081138]
[1727835836924,0.24108102,61657.0,61656.0,0.001638]
[1727835837978,0.24308102,61657.0,61656.0,0.001638]
[1727835838393,0.24208102,61657.0,61656.0,0.001638]
[1727835838894,0.25108102,61657.0,61656.0,0.001638]
[1727835839103,0.24408102,61657.0,61656.0,0.001638]
[1727835839308,0.24608102,61657.0,61656.0,0.001638]
[1727835839506,0.24008102,61657.0,61656.0,0.001638]
[1727835839709,0.24808102,61657.0,61656.0,0.001638]
[1727835839889,0.25908102,61657.0,61656.0,0.001638]
[1727835840471,0.35708102,61657.0,61656.0,0.001638]
[1727835841797,0.3316548,61657.0,61656.0,0.001638]
[1727835842205,0.3336548,61657.0,61656.0,0.001638]
[1727835842477,0.38227308,61657.0,61656.0,0.001638]
[1727835843017,0.3236548,61657.0,61656.0,0.001638]
[1727835843225,0.37427308,61657.0,61656.0,0.001638]
[1727835843431,0.38627308,61657.0,61656.0,0.001638]
[1727835843770,0.38827308,61657.0,61656.0,0.001638]
[1727835844318,0.38631299,61657.0,61656.0,0.001638]
[1727835844965,0.3376548,61657.0,61656.0,0.001638]
[1727835845411,0.38631299,61657.0,61656.0,0.001638]
[1727835845614,0.3376548,61657.0,61656.0,0.001638]
[1727835847250,0.3376548,61657.0,61656.0,0.081238]
[1727835847451,0.1079048,61657.0,61656.0,0.21099]
[1727835847971,0.1079048,61657.0,61656.0,0.081238]
[1727835848178,0.0969048,61657.0,61656.0,0.081238]
[1727835848403,0.1079048,61657.0,61656.0,0.081238]
[1727835848604,0.0959048,61657.0,61656.0,0.081238]
[1727835849019,0.0849048,61657.0,61656.0,0.081238]
[1727835849222,0.0969048,61657.0,61656.0,0.081238]
[1727835849535,0.11333111,61657.0,61656.0,0.081238]
[1727835849741,0.11733111,61657.0,61656.0,0.081238]
[1727835850751,0.04551223,61657.0,61656.0,0.30929]
[1727835850949,0.03242631,61657.0,61656.0,0.30929]
[1727835851615,0.02942631,61657.0,61656.0,0.30929]
[1727835851750,0.03242631,61657.0,61656.0,0.30929]
[1727835851952,0.003,61657.0,61656.0,0.30929]
[1727835852348,0.004,61657.0,61656.0,0.30929]
[1727835852551,0.004,61657.0,61656.0,0.099938]
[1727835852552,0.001,61657.0,61656.0,0.099938]
[1727835852796,0.001,61657.0,61656.0,0.22969]
[1727835852996,0.002,61657.0,61656.0,0.23069]